[Event "Czech Extraliga 2023-24"]
[Site "Czech Republic"]
[Date "2024.01.28"]
[Round "6.3"]
[White "KRO5 Babula Vlastimil GM"]
[Black "PAR5 Movsesian Sergei GM"]
[Result "1/2-1/2"]
[ECO "E11"]
[WhiteElo "2538"]
[BlackElo "2606"]
[Annotator "RC"]
[PlyCount "36"]
[EventDate "2023.10.14"]
[EventCountry "CZE"]
[SourceTitle "playchess.com"]
[Source "ChessBase"]
[SourceQuality "1"]
[TimeControl "40/5400+30:1800+30"]

1. d4 {[%emt 0:00:14]} Nf6 {[%emt 0:00:06]} 2. c4 {[%emt 0:00:21]} e6 {[%emt 0:00:21]} 3. Nf3 {[%emt 0:00:38]} Bb4+ {[%emt 0:01:08]} 4. Bd2 {[%emt 0:00:46]} Bxd2+ {[%emt 0:00:28]} 5. Qxd2 {[%emt 0:00:36]} O-O {[%emt 0:00:26]} 6. g3 {[%emt 0:01:53]} d5 {[%emt 0:00:51]} 7. Bg2 {[%emt 0:01:36]} c6 {[%emt 0:00:20]} 8. Qc2 {[%emt 0:03:21]} b6 {[%emt 0:01:08]} 9. O-O {[%emt 0:01:39]} Bb7 {[%emt 0:01:18]} 10. Nbd2 {[%emt 0:03:10]} Nbd7 {[%emt 0:00:30]} 11. b4 {[%emt 0:13:05]} h6 {[%emt 0:01:09]} 12. Rfe1 {[%emt 0:04:58]} a5 {[%emt 0:06:48]} 13. a3 {[%emt 0:01:31]} Qe7 {[%emt 0:02:26]} 14. Rab1 {[%emt 0:02:48]} axb4 {[%emt 0:03:35]} 15. axb4 {[%emt 0:00:35]} Ra7 {[%emt 0:04:24]} 16. c5 {[%emt 0:03:20]} bxc5 {[%emt 0:08:55]} 17. bxc5 {[%emt 0:00:43]} Rfa8 {[%emt 0:03:16]} 18. e4 {[%emt 0:03:09]} Qd8 {[%emt 0:02:29]} 1/2-1/2

[Event "Czech Extraliga 2023-24"]
[Site "Czech Republic"]
[Date "2024.01.28"]
[Round "6.3"]
[White "LYS4 Plat Vojtech GM"]
[Black "UNI3 Cernousek Lukas IM"]
[Result "1-0"]
[ECO "C42"]
[WhiteElo "2503"]
[BlackElo "2454"]
[Annotator "TA"]
[PlyCount "103"]
[EventDate "2023.10.14"]
[EventCountry "CZE"]
[SourceTitle "playchess.com"]
[Source "ChessBase"]
[SourceQuality "1"]
[TimeControl "40/5400+30:1800+30"]

{[%evp 23,103,4,0,0,4,0,0,-4,0,-21,44,44,44,36,85,77,101,105,97,90,93,87,78,59,65,55,72,58,56,45,47,52,44,39,45,29,69,47,58,40,55,56,110,101,127,134,136,137,134,127,135,139,150,130,184,162,164,156,171,166,174,172,183,184,184,178,456,505,481,466,568,570,846,795,1329,1160,2444,2435,29963,29965,29948,8177]} 1. e4 {[%emt 0:00:05]} e5 {[%emt 0:00:06]} 2. Nf3 {[%emt 0:00:10]} Nf6 {[%emt 0:00:05]} 3. Nxe5 {[%emt 0:00:25]} d6 {[%emt 0:00:05]} 4. Nf3 {[%emt 0:00:06]} Nxe4 {[%emt 0:00:06]} 5. Bd3 {[%emt 0:00:42]} Nf6 {[%emt 0:00:08]} 6. O-O {[%emt 0:00:06] C42: Petroff Defence: 3 Nxe5 and unusual White 3rd moves.} Be7 {[%emt 0:00:08]} 7. c3 {[%emt 0:00:06]} O-O {[%emt 0:00:06]} 8. Bc2 {[%emt 0:00:13]} Bg4 {[%emt 0:00:12]} 9. d4 {[%emt 0:00:05]} Re8 {[%emt 0:00:12]} 10. Nbd2 {[%emt 0:01:51]} d5 {[%emt 0:03:28]} 11. Re1 {[%emt 0:04:38]} Nbd7 {[%emt 0:02:20]} 12. Nf1 {[%emt 0:02:19]} Bd6 {[%emt 0:00:07]} 13. Rxe8+ {[%emt 0:03:14]} Qxe8 {[%emt 0:00:02]} 14. Bg5 $5 $146 {[%emt 0:04:29][%mdl 8] An interesting novelty.} ({Predecessor:} 14. Ne3 Bh5 15. Nf5 Bxf3 16. gxf3 Bf8 17. Bf4 Qd8 18. Qd2 Nh5 19. Bg5 Ndf6 20. Re1 {½-½ Aronian,L (2767)-Giri,A (2782) chess.com Speed 5m+1spm 2018 blitz (2.2)}) 14... Ne4 {[%emt 0:11:51]} 15. Bh4 {[%emt 0:06:34]} Qe6 {[%emt 0:08:39]} 16. Bg3 {[%emt 0:11:27]} Bf5 {[%emt 0:15:57]} (16... Nxg3 $11 17. hxg3 Nf6) 17. Bxe4 $14 {[%emt 0:11:34]} Bxe4 {[%emt 0:01:41]} 18. Ng5 {[%emt 0:00:59]} Qf5 {[%emt 0:24:26]} (18... Qg6 $14 19. Nxe4 dxe4) 19. Nxe4 $16 {[%emt 0:00:48]} dxe4 {[%emt 0:00:04]} 20. Qb3 {[%emt 0:02:57]} b6 {[%emt 0:00:23]} 21. Ne3 {[%emt 0:06:50]} Qe6 {[%emt 0:06:35]} 22. Qxe6 {[%emt 0:03:51]} fxe6 {[%emt 0:00:02]} 23. Nc4 {[%emt 0:00:30]} Bxg3 {[%emt 0:00:06]} 24. hxg3 {[%emt 0:00:31]} Rd8 {[%emt 0:06:57]} 25. Re1 {[%emt 0:01:18]} Nf6 {[%emt 0:00:02]} 26. Kf1 {[%emt 0:01:16]} Rd5 {[%emt 0:00:39]} 27. Ke2 {[%emt 0:01:59]} Kf8 {[%emt 0:04:28]} 28. Rh1 {[%emt 0:01:59]} h5 {[%emt 0:06:11]} 29. a4 {[%emt 0:05:09]} Rf5 {[%emt 0:05:51]} 30. Ne5 {[%emt 0:00:57]} Ke7 {[%emt 0:02:16]} 31. f4 {[%emt 0:02:20]} exf3+ {[%emt 0:00:07]} 32. gxf3 {[%emt 0:00:05]} Nd7 {[%emt 0:00:48]} (32... Rg5 $14) 33. Nc6+ $16 {[%emt 0:03:31]} Kf7 {[%emt 0:00:19]} 34. Nxa7 {[%emt 0:01:31]} Ra5 {[%emt 0:00:49]} 35. Nc6 {[%emt 0:00:58]} Rxa4 {[%emt 0:00:12]} 36. Rxh5 {[%emt 0:00:05]} Ra2 {[%emt 0:00:09]} 37. Rb5 {[%emt 0:00:05]} Nf6 {[%emt 0:01:23]} 38. c4 {[%emt 0:00:58]} Ne8 {[%emt 0:01:15]} (38... Nd7 $16 {is a better defense.} 39. g4 Ra1) 39. g4 {[%emt 0:01:15]} Nd6 {[%emt 0:00:12]} 40. Rb4 {[%emt 0:00:03]} Kf6 {[%emt 0:01:29]} 41. c5 {[%emt 0:34:55]} Nc8 {[%emt 0:30:17]} 42. Rb3 {[%emt 0:00:47]} g5 {[%emt 0:00:00] [#]} 43. Kd3 $1 {[%emt 0:00:00]} bxc5 {[%emt 0:00:00]} 44. dxc5 {[%emt 0:00:00]} Ne7 $2 {[%emt 0:00:00]} (44... Ra6) 45. Nxe7 $18 {[%emt 0:00:00]} Kxe7 {[%emt 0:00:00]} 46. Kc4 {[%emt 0:00:00]} Kd7 {[%emt 0:00:00]} 47. Kb5 {[%emt 0:00:00]} Kc8 {[%emt 0:00:00]} 48. Re3 {[%emt 0:00:00]} Kd7 {[%emt 0:02:37]} 49. c6+ {[%emt 0:00:00]} Kd8 {[%emt 0:01:37]} 50. b4 {[%emt 0:00:00]} ({Weaker is} 50. Rxe6 Rxb2+ 51. Kc4 Rf2 $14) 50... Rf2 {[%emt 0:00:20]} 51. Rxe6 {[%emt 0:00:00]} Rxf3 {[%emt 0:00:06]} 52. Re5 {[%emt 0:00:00]} 1-0

[Event "Czech Extraliga 2023-24"]
[Site "Czech Republic"]
[Date "2024.01.28"]
[Round "6.3"]
[White "TUR5 Jaracz Pawel GM"]
[Black "LIN4 Petr Martin GM"]
[Result "1/2-1/2"]
[ECO "D32"]
[WhiteElo "2472"]
[BlackElo "2472"]
[Annotator "TA"]
[PlyCount "45"]
[EventDate "2023.10.14"]
[EventCountry "CZE"]
[SourceTitle "playchess.com"]
[Source "ChessBase"]
[SourceQuality "1"]
[TimeControl "40/5400+30:1800+30"]

{[%evp 21,45,0,0,0,0,0,0,0,0,0,0,0,0,0,102,101,109,101,105,95,76,70,74,60,70,78]} 1. c4 {[%emt 0:00:12]} c5 {[%emt 0:01:37]} 2. Nf3 {[%emt 0:00:31]} Nc6 {[%emt 0:05:29]} 3. d4 {[%emt 0:02:54]} cxd4 {[%emt 0:00:33]} 4. Nxd4 {[%emt 0:00:04]} Nf6 {[%emt 0:03:21]} 5. Nc3 {[%emt 0:00:55]} e6 {[%emt 0:02:39]} 6. a3 {[%emt 0:01:56]} d5 {[%emt 0:06:58]} 7. cxd5 {[%emt 0:01:06]} exd5 {[%emt 0:00:45]} 8. e3 {[%emt 0:01:51]} Bd6 {[%emt 0:03:21]} 9. Be2 {[%emt 0:02:10]} O-O {[%emt 0:00:18]} 10. O-O {[%emt 0:01:22]} Re8 {[%emt 0:05:54]} 11. Nf3 {[%emt 0:11:16]} a6 {[%emt 0:16:11]} 12. b4 {[%emt 0:02:09][%cal Oc1b2,Bb2b4,Bb4b5][%mdl 32]} Bb8 {[%emt 0:00:20]} 13. Bb2 {[%emt 0:04:53]} Qd6 {[%emt 0:00:21][%cal Od5d4]} 14. b5 {[%emt 0:06:53] The position is equal.} Ne5 {[%emt 0:05:42]} 15. Nxe5 {[%emt 0:01:31]} Qxe5 {[%emt 0:00:18][%csl Gb8][%cal Re5h2] [#]} 16. g3 {[%emt 0:00:12]} Bh3 {[%emt 0:04:07]} 17. Re1 {[%emt 0:02:36]} Ne4 {[%emt 0:04:21]} (17... Qg5 $11) 18. Nxe4 $16 {[%emt 0:07:07]} Qxb2 {[%emt 0:03:14]} 19. Qxd5 {[%emt 0:07:27] [#] aiming for bxa6.} Qe5 {[%emt 0:00:09]} 20. Qxe5 {[%emt 0:05:32]} ({Worse is} 20. Qxb7 Ra7 (20... Qxe4 21. Qxe4 Rxe4 22. b6 $11) 21. Qc6 Rc7 $17 (21... Qxe4 22. Qxe4 Rxe4 23. b6 $11)) 20... Bxe5 {[%emt 0:02:31]} 21. Rad1 {[%emt 0:01:51]} axb5 {[%emt 0:00:08]} 22. Bxb5 {[%emt 0:01:55]} Re7 {[%emt 0:00:02][%cal Oe5b2]} 23. a4 {[%emt 0:07:21] Black got outplayed after the opening.   Weighted Error Value: White=0.02 (flawless) /Black=0.13 (very precise) .  Mistake:       	---       	Black=1      OK:         	White=6     	Black=6      Best:        	White=2     	Black=1} 1/2-1/2

[Event "Czech Extraliga 2023-24"]
[Site "Czech Republic"]
[Date "2024.01.28"]
[Round "6.4"]
[White "UNI4 Bernasek Jan GM"]
[Black "LYS6 Vykouk Jan IM"]
[Result "1-0"]
[ECO "D35"]
[WhiteElo "2515"]
[BlackElo "2483"]
[Annotator "TA"]
[PlyCount "105"]
[EventDate "2023.10.14"]
[EventCountry "CZE"]
[SourceTitle "playchess.com"]
[Source "ChessBase"]
[SourceQuality "1"]
[TimeControl "40/5400+30:1800+30"]

{[%evp 34,105,6,10,3,-14,0,0,0,0,0,0,36,15,35,33,26,40,71,90,108,123,124,62,68,22,16,28,19,27,37,7,68,53,106,0,0,14,93,0,116,124,250,199,197,191,317,316,314,301,627,623,770,763,1129,671,1660,1682,1503,1525,1560,1184,29965,1833,6370,5912,29978,29979,29981,29982,29985,29975,29988,29969]} 1. d4 {[%emt 0:00:02]} Nf6 {[%emt 0:00:05]} 2. c4 {[%emt 0:00:05]} e6 {[%emt 0:00:05]} 3. Nf3 {[%emt 0:00:19]} Bb4+ {[%emt 0:01:11]} 4. Bd2 {[%emt 0:01:34]} Be7 {[%emt 0:00:47]} 5. Nc3 {[%emt 0:01:28]} d5 {[%emt 0:00:17]} 6. cxd5 {[%emt 0:01:42]} exd5 {[%emt 0:00:07]} 7. Bf4 {[%emt 0:00:12]} c6 {[%emt 0:01:57]} 8. h3 {[%emt 0:03:01]} Bf5 {[%emt 0:03:34]} 9. e3 {[%emt 0:04:54]} Qb6 {[%emt 0:11:42] D35: Queen's Gambit Declined: Exchange Variation.} 10. Qc1 {[%emt 0:01:57]} h6 {[%emt 0:04:03]} 11. Be2 {[%emt 0:02:43]} Nbd7 {[%emt 0:00:49]} 12. O-O {[%emt 0:06:22]} O-O {[%emt 0:00:26]} 13. Rd1 {[%emt 0:14:22]} Rac8 {[%emt 0:02:18]} 14. Bf1 $146 {[%emt 0:11:06]} ({Predecessor:} 14. Ne5 Nxe5 15. Bxe5 Qd8 16. Qd2 Qd7 17. Rac1 Rfd8 18. Bd3 Nh7 19. Qc2 Bxd3 20. Qxd3 Ng5 21. a3 {0-1 Bensdorp,M (2238)-Houska,J (2375) Amsterdam ACT op 1st 2004 (8)}) 14... Rfe8 {[%emt 0:01:53]} 15. Qd2 {[%emt 0:06:52]} Bb4 {[%emt 0:14:52]} 16. Qe2 {[%emt 0:03:58]} a5 {[%emt 0:12:53]} 17. Rac1 {[%emt 0:01:26]} Qd8 {[%emt 0:01:12]} 18. Ne1 {[%emt 0:04:08]} Nf8 {[%emt 0:02:54]} 19. Qf3 {[%emt 0:03:22]} Be4 {[%emt 0:05:01]} 20. Nxe4 {[%emt 0:02:17]} dxe4 {[%emt 0:00:06]} 21. Qe2 {[%emt 0:00:32]} Nd5 {[%emt 0:00:05]} 22. Nc2 {[%emt 0:04:05]} Ne6 {[%emt 0:03:32]} 23. Bh2 {[%emt 0:03:06]} Bf8 {[%emt 0:04:22]} 24. Na3 {[%emt 0:02:46]} Bxa3 {[%emt 0:04:31]} 25. bxa3 {[%emt 0:00:05]} b5 {[%emt 0:00:19]} 26. Qc2 {[%emt 0:02:15]} f5 {[%emt 0:01:03]} 27. a4 $1 {[%emt 0:00:08]} Qd7 {[%emt 0:03:22]} 28. axb5 {[%emt 0:07:08]} ({White should play} 28. a3 $16) 28... cxb5 $14 {[%emt 0:00:06]} 29. Qb2 {[%emt 0:02:54]} (29. Qb3 $14 b4 30. Bc4) 29... b4 $1 $11 {[%emt 0:00:40]} 30. a3 {[%emt 0:00:08]} f4 {[%emt 0:09:01]} 31. axb4 {[%emt 0:02:29]} axb4 {[%emt 0:00:23]} 32. Qb3 {[%emt 0:01:41]} Nc3 {[%emt 0:05:20]} (32... Rc3 $2 33. Rxc3 Nxc3 34. Ra1 $18) (32... Kh8 $11) 33. Re1 $14 {[%emt 0:00:47]} f3 {[%emt 0:00:37]} (33... Kh7 $14) 34. Ra1 {[%emt 0:02:12]} ({Much weaker is} 34. Qxb4 $6 fxg2 35. Kxg2 (35. Rxc3 $2 gxf1=Q+ 36. Kxf1 Ng5 $19) (35. Bxg2 Na2 $17) 35... Na2 $11) ({Better is} 34. Rc2 $1 $16) 34... Kh8 $11 {[%emt 0:01:33]} 35. h4 {[%emt 0:00:35]} Qe7 {[%emt 0:04:07] [#]} (35... Nf8 $11) 36. Ra6 {[%emt 0:00:09]} (36. Bg3 $1 $16) 36... Nc7 {[%emt 0:02:00]} (36... fxg2 $1 $11 37. Bxg2 Ne2+ 38. Rxe2 Rc1+ 39. Bf1 Qxh4 40. Rxe6 Qg4+ 41. Bg3 Rxe6) 37. Ra7 $16 {[%emt 0:01:46]} Qe6 {[%emt 0:00:28]} (37... fxg2 $16 38. Bxg2 N3d5) 38. Qxb4 {[%emt 0:00:47]} N7d5 {[%emt 0:00:13] [#]} 39. Qd6 $1 {[%emt 0:03:50]} Qf5 {[%emt 0:01:29]} (39... fxg2 {was necessary.} 40. Bxg2 (40. Kxg2 Qf5 $16) 40... Qxd6 41. Bxd6 Rc6) 40. Be5 $18 {[%emt 0:00:26]} Nf6 {[%emt 0:00:17]} 41. Bxf6 {[%emt 0:10:57]} gxf6 $2 {[%emt 0:00:19]} (41... Qxf6 42. Qxf6 gxf6) 42. g3 $18 {[%emt 0:04:27]} Nd5 {[%emt 0:12:42]} 43. Rd7 {[%emt 0:03:41]} Nc3 {[%emt 0:07:48]} 44. Ra1 {[%emt 0:03:12]} Re6 {[%emt 0:06:05]} 45. Rd8+ {[%emt 0:03:26]} Re8 {[%emt 0:00:04]} 46. Rxc8 {[%emt 0:00:55]} Rxc8 {[%emt 0:00:05]} 47. Kh2 {[%emt 0:00:23]} Rg8 {[%emt 0:01:13]} 48. Bh3 {[%emt 0:01:26]} (48. Bc4 $142 Re8 49. Ra7 Qg6 50. Bf7 (50. Rf7 Nb5 $18) 50... Qg7 51. Bxe8 Nb5 52. Bxb5 (52. Rxg7 Nxd6 53. Re7 Kg8 $18) 52... Qxa7 53. Bd7 (53. Qxf6+ Kh7 $18)) 48... Qg6 {[%emt 0:00:02]} 49. Be6 {[%emt 0:01:18]} Re8 {[%emt 0:00:10]} 50. Qd7 {[%emt 0:00:33]} Rf8 {[%emt 0:00:27]} 51. Ra7 {[%emt 0:02:03]} h5 {[%emt 0:01:59]} 52. Bf5 {[%emt 0:01:09]} Qh6 {[%emt 0:00:01]} 53. Qc6 {[%emt 0:01:21]} 1-0

[Event "Czech Extraliga 2023-24"]
[Site "Czech Republic"]
[Date "2024.01.28"]
[Round "6.4"]
[White "PAR6 Votava Jan GM"]
[Black "KRO6 Blohberger Felix GM"]
[Result "0-1"]
[ECO "E11"]
[WhiteElo "2473"]
[BlackElo "2522"]
[Annotator "RC"]
[PlyCount "72"]
[EventDate "2023.10.14"]
[EventCountry "CZE"]
[SourceTitle "playchess.com"]
[Source "ChessBase"]
[SourceQuality "1"]
[TimeControl "40/5400+30:1800+30"]

1. d4 {[%emt 0:00:04]} Nf6 {[%emt 0:00:07]} 2. c4 {[%emt 0:00:06]} e6 {[%emt 0:00:04]} 3. Nf3 {[%emt 0:00:06]} d5 {[%emt 0:00:04]} 4. g3 {[%emt 0:00:09]} Bb4+ {[%emt 0:00:10]} 5. Bd2 {[%emt 0:00:11]} Be7 {[%emt 0:00:34]} 6. Bg2 {[%emt 0:00:19]} c6 {[%emt 0:00:40]} 7. Qc2 {[%emt 0:00:55]} Nbd7 {[%emt 0:00:59]} 8. O-O {[%emt 0:00:26]} O-O {[%emt 0:00:06]} 9. Rd1 {[%emt 0:07:53]} a5 {[%emt 0:00:16]} 10. Bg5 {[%emt 0:07:18]} h6 {[%emt 0:05:27]} 11. Bxf6 {[%emt 0:00:45]} Nxf6 {[%emt 0:00:10]} 12. Nbd2 {[%emt 0:02:14]} a4 {[%emt 0:02:41]} 13. e4 {[%emt 0:01:55]} Qa5 {[%emt 0:08:09]} 14. Rac1 {[%emt 0:14:34]} Rd8 {[%emt 0:11:52]} 15. e5 {[%emt 0:05:00]} Nd7 {[%emt 0:01:02]} 16. c5 {[%emt 0:01:45]} b6 {[%emt 0:02:32]} 17. cxb6 {[%emt 0:00:22]} Bb7 {[%emt 0:00:16]} 18. Nb1 {[%emt 0:09:21]} Rdc8 {[%emt 0:06:24]} 19. Nc3 {[%emt 0:01:34]} c5 {[%emt 0:05:09]} 20. Qe2 {[%emt 0:03:38]} Qxb6 {[%emt 0:15:10]} 21. Qb5 {[%emt 0:03:23]} Qxb5 {[%emt 0:05:25]} 22. Nxb5 {[%emt 0:00:02]} Ba6 {[%emt 0:03:41]} 23. Nc3 {[%emt 0:06:36]} a3 {[%emt 0:04:26]} 24. b3 {[%emt 0:08:41]} cxd4 {[%emt 0:01:30]} 25. Rxd4 {[%emt 0:00:05]} Rc7 {[%emt 0:14:10]} 26. Ne2 {[%emt 0:03:49]} Rxc1+ {[%emt 0:05:18]} 27. Nxc1 {[%emt 0:00:11]} Rc8 {[%emt 0:00:04]} 28. Rd1 {[%emt 0:00:29]} Rc2 {[%emt 0:00:49]} 29. Bf1 {[%emt 0:08:40]} Bxf1 {[%emt 0:00:22]} 30. Kxf1 {[%emt 0:00:32]} Bc5 {[%emt 0:00:51]} 31. Nd3 {[%emt 0:00:26]} Rxa2 {[%emt 0:00:42]} 32. Rc1 {[%emt 0:00:47]} Bb6 {[%emt 0:00:15]} 33. Rc8+ {[%emt 0:03:36]} Kh7 {[%emt 0:00:05]} 34. Rc1 {[%emt 0:01:01]} f6 {[%emt 0:01:38]} 35. exf6 {[%emt 0:02:43]} gxf6 {[%emt 0:03:19]} 36. Rc6 {[%emt 0:02:11]} Ra1+ {[%emt 0:00:22]} 0-1

[Event "Czech Extraliga 2023-24"]
[Site "Czech Republic"]
[Date "2024.01.28"]
[Round "6.4"]
[White "BSS6 Zwardon Vojtech IM"]
[Black "NOV5 Nguyen Thai Dai Van GM"]
[Result "0-1"]
[ECO "A28"]
[WhiteElo "2470"]
[BlackElo "2618"]
[Annotator "TA"]
[PlyCount "72"]
[EventDate "2023.10.14"]
[EventCountry "CZE"]
[SourceTitle "playchess.com"]
[Source "ChessBase"]
[SourceQuality "1"]
[TimeControl "40/5400+30:1800+30"]

{[%evp 9,71,0,5,0,0,0,-14,-6,4,-8,-6,-7,-8,-35,-37,-27,-25,-40,-2,-20,-30,-48,-48,-59,-58,-95,-72,-95,-69,-151,-131,-131,-143,-158,-146,-165,-146,-146,-156,-185,-164,-179,-147,-299,-210,-207,-224,-302,-262,-304,-291,-279,-301,-1140,-1077,-1146,-1259,-1313,-1289,-1063,-767,-29983,-29983,-29999]} 1. c4 {[%emt 0:00:02]} Nf6 {[%emt 0:04:06]} 2. Nc3 {[%emt 0:00:01]} e5 {[%emt 0:00:20]} 3. Nf3 {[%emt 0:00:01]} Nc6 {[%emt 0:00:10]} 4. Qc2 {[%emt 0:00:02]} g6 {[%emt 0:10:15]} 5. g3 {[%emt 0:00:17]} Bg7 {[%emt 0:04:02]} 6. Bg2 {[%emt 0:00:01]} O-O {[%emt 0:00:10]} 7. O-O {[%emt 0:00:03]} d6 {[%emt 0:00:48]} 8. d3 {[%emt 0:00:40] The position is equal.} Bg4 {[%emt 0:04:48]} 9. Re1 {[%emt 0:08:24]} Qd7 {[%emt 0:14:59]} 10. Rb1 {[%emt 0:02:33]} Bh3 {[%emt 0:07:37]} 11. Bh1 {[%emt 0:00:07]} h6 {[%emt 0:00:11]} 12. b4 {[%emt 0:00:22]} Ng4 {[%emt 0:07:28]} 13. Nd5 {[%emt 0:00:29]} f5 {[%emt 0:03:42]} 14. b5 {[%emt 0:00:09]} (14. d4 $5) 14... Nd8 {[%emt 0:00:27]} 15. c5 {[%emt 0:00:47]} c6 {[%emt 0:03:53]} 16. bxc6 {[%emt 0:00:05]} bxc6 {[%emt 0:00:03]} 17. Nh4 {[%emt 0:09:25]} Kh7 {[%emt 0:03:52]} (17... cxd5 $2 {too greedy.} 18. Bxd5+ Kh7 19. Bxa8 $18) 18. Qa4 {[%emt 0:00:36]} g5 {[%emt 0:09:21]} 19. Nb6 {[%emt 0:34:07]} (19. Nf3 $15) 19... axb6 $17 {[%emt 0:03:38]} 20. Qxa8 {[%emt 0:00:07][%cal Oc5b6]} gxh4 {[%emt 0:06:17]} 21. cxb6 {[%emt 0:09:09] Strongly threatening b7.} Nb7 {[%emt 0:01:39] Really sharp!} 22. Qa4 {[%emt 0:00:04]} d5 $40 {[%emt 0:00:06][%mdl 128] ...hxg3 would now be deadly. Black attacks with force.} 23. f3 {[%emt 0:00:17]} hxg3 {[%emt 0:03:28]} 24. hxg3 {[%emt 0:06:16] [#]} (24. fxg4 f4 25. Bf3 Bxg4 $15) 24... f4 $1 {[%emt 0:01:18][%mdl 512]} 25. Bg2 {[%emt 0:00:07] [#]} (25. fxg4 $2 {perishes.} Qxg4 26. Be4+ Kh8 $19 (26... dxe4 $2 27. Qxe4+ Rf5 28. Qf3 $19)) 25... Nf6 $1 {[%emt 0:02:20] ...Rg8 is the strong threat. A dynamic duo of knights.} 26. d4 $2 {[%emt 0:01:58] White does not recover from this.} (26. g4 $17 Bxg2 27. Kxg2) 26... Bxg2 {[%emt 0:02:55]} 27. Kxg2 {[%emt 0:27:51]} Qf5 {[%emt 0:00:11]} 28. dxe5 {[%emt 0:00:00]} Qxb1 {[%emt 0:00:39]} 29. exf6 {[%emt 0:00:00]} Rxf6 {[%emt 0:00:09]} 30. Qa7 {[%emt 0:00:00]} Rf7 {[%emt 0:02:31]} 31. a4 $2 {[%emt 0:00:00]} (31. Qa4) 31... Qb4 $19 {[%emt 0:00:41]} 32. Rf1 {[%emt 0:00:00]} fxg3 {[%emt 0:00:21] aiming for ...Qc4.} 33. Qa6 {[%emt 0:00:00]} Nc5 {[%emt 0:00:55][%csl LRa4,LRa6]} 34. Qc8 {[%emt 0:00:00]} Qxb6 {[%emt 0:01:03] And now ...Rf6 would win.} 35. Rh1 {[%emt 0:00:00] [#]} Nd3 $1 {[%emt 0:01:37]} 36. Qh3 {[%emt 0:00:00]} (36. Rf1 Nxc1) 36... Qf2# {[%emt 0:02:30] Weighted Error Value: White=0.49/Black=0.22 (precise) .  Mistake:       	White=3     	---        Inaccurate:     	White=3     	Black=1      OK:         	White=9     	Black=11     Best:        	White=3     	Black=5      Strong:       	---       	Black=1      Brilliant:      	---       	Black=1} 0-1

[Event "Czech Extraliga 2023-24"]
[Site "Czech Republic"]
[Date "2024.01.28"]
[Round "6.4"]
[White "LIN6 Rasik Vitezslav GM"]
[Black "TUR6 Vlasak Lukas IM"]
[Result "1/2-1/2"]
[ECO "C00"]
[WhiteElo "2413"]
[BlackElo "2442"]
[Annotator "TA"]
[PlyCount "20"]
[EventDate "2023.10.14"]
[EventCountry "CZE"]
[SourceTitle "playchess.com"]
[Source "ChessBase"]
[SourceQuality "1"]
[TimeControl "40/5400+30:1800+30"]

{[%evp 9,20,0,0,0,0,0,4,6,2,0,16,-3,28]} 1. e4 {[%emt 0:00:03]} e6 {[%emt 0:00:25]} 2. d3 {[%emt 0:00:39]} d5 {[%emt 0:00:22]} 3. Nd2 {[%emt 0:00:23]} Nf6 {[%emt 0:00:35]} 4. Ngf3 {[%emt 0:00:41]} Nc6 {[%emt 0:00:27]} 5. c3 {[%emt 0:02:13]} Bd6 {[%emt 0:00:45] The position is equal.} 6. Be2 {[%emt 0:01:15]} O-O {[%emt 0:00:22]} 7. O-O {[%emt 0:00:29]} Re8 {[%emt 0:00:20]} 8. Re1 {[%emt 0:03:14]} e5 {[%emt 0:01:27]} 9. Bf1 {[%emt 0:03:45]} h6 {[%emt 0:15:03]} 10. h3 {[%emt 0:08:08]} dxe4 {[%emt 0:00:34] A rather calm draw.   Weighted Error Value: White=0.04 (flawless) /Black=0.04 (flawless) .  Inaccurate:     	---       	Black=1      OK:         	White=1     	Black=2} 1/2-1/2